Cogmind - Beta 13 @@@ ROGUE MODE // 2024.04.20 @ 12:53:12 Player: rel Result: Destroyed by Y-45 Defender with Beam Rifle Performance ------------- Evolutions (1) 500 Regions Visited (3) 600 Robots Destroyed (67) 335 Value Destroyed (1708) 1708 Prototype IDs (3) 60 Alien Tech Used (0) 0 Bonus (197) 197 TOTAL SCORE: 3400 Bonus ------- High Alert Combat Kills 197 Cogmind --------- Core Integrity 0/400 Matter 245/300 Energy 92/100 System Corruption 6% Temperature Cool (12) Movement Walking (120) Location -9/Storage Parts ------- > --- POWER (1) -------- (None) > --- PROPULSION (4) --- Aluminum Leg Aluminum Leg Aluminum Leg > --- UTILITY (2) ------ Large Storage Unit Sensor Array > --- WEAPON (2) ------- Heavy Particle Gun Axe > --- INVENTORY (15) --- Thermal Generator Improved Heat Sink Large Storage Unit Weight Redist. System Signal Interpreter Actuator Array Heavy Particle Gun Improved Assault Rifle Assault Cannon Assault Cannon Axe Peak State ------------ > --- POWER ------------ Improved Ion Engine > --- PROPULSION ------- Aluminum Leg Aluminum Leg Aluminum Leg Improved Aluminum Leg > --- UTILITY ---------- Large Storage Unit Actuator Array > --- WEAPON ----------- Heavy Particle Gun Heavy Particle Gun > --- INVENTORY -------- Ion Engine Improved Ion Engine Aluminum Leg Aluminum Leg Thermal Generator Thermal Generator Large Storage Unit Weight Redist. System Sensor Array Assault Cannon Assault Cannon Mini Grenade Launcher Katana Axe Axe [Rating: 22] Favorites ----------- Power Ion Engine Engine Ion Engine Propulsion Aluminum Leg Leg Aluminum Leg Utility Large Storage Unit Device Actuator Array Storage Large Storage Unit Protection Light Armor Plating Weapon Medium Laser Energy Gun Medium Laser Energy Cannon Advanced Beam Cannon Ballistic Gun Assault Rifle Ballistic Cannon Assault Cannon Launcher Mini Grenade Launcher Slashing Weapon Katana Build | -11 -10 -9 -9 ------- Run | Yrd Mat Mat Sto Slots Evolved 2 | . . 2 . Power . | . . . . Propulsion 2 | . . 2 . Utility . | . . . . Weapon . | . . . . Parts Attached 66 | 6 5 44 11 Power 5 | 1 . 3 1 Engine 5 | 1 . 3 1 Core . | . . . . Reactor . | . . . . Propulsion 18 | 2 . 13 3 Treads . | . . . . Leg 18 | 2 . 13 3 Wheel . | . . . . Hover . | . . . . Flight . | . . . . Utility 8 | 1 2 4 1 Device 5 | . . 4 1 Storage 2 | 1 1 . . Processor . | . . . . Hackware . | . . . . Protection 1 | . 1 . . Artifact . | . . . . Weapon 35 | 2 3 24 6 Energy Gun 13 | 2 2 8 1 Energy Cannon 1 | . . 1 . Ballistic Gun 2 | . . 1 1 Ballistic Cannon 4 | . . 2 2 Launcher 6 | . 1 5 . Special Weapon . | . . . . Impact Weapon . | . . . . Slashing Weapon 9 | . . 7 2 Piercing Weapon . | . . . . Special Melee Weapon . | . . . . Unidentified Prototypes 3 | . . 2 1 Corrupted Parts 1 | . . 1 . System Corruption 6 | . . 6 . Parts Lost 24 | . . 20 4 Power 3 | . . 2 1 Propulsion 10 | . . 7 3 Utility 4 | . . 4 . Weapon 7 | . . 7 . Highest Loss Streak 7 | . . 7 3 To Critical Strikes . | . . . . Average Slot Usage (%) 91 | . 94 92 78 Engine 10 | . 14 10 5 Leg 37 | . 28 42 30 Device 5 | . . 6 9 Storage 11 | . 14 11 11 Protection 2 | . 9 . . Energy Gun 7 | . 18 5 1 Ballistic Cannon 1 | . . 1 6 Launcher 5 | . 9 4 . Slashing Weapon 7 | . . 8 10 Naked Turns . | . . . . Heaviest Build 40 | 13 34 40 31 Greatest Support 46 | 20 20 46 33 Greatest Overweight (x) 2 | . 1 1 2 Average Overweight (x) . | . . . . Largest Inventory Capacity 15 | 8 15 15 15 Average Capacity 12 | 7 14 15 15 Most Carried 15 | 5 12 15 12 Average Carried 8 | 2 6 13 9 Final Capacity 15 | 8 15 15 15 Final Carried 12 | 2 12 11 11 Class Distribution -------------------- 71% | Mutant 19% | Scavenger-Mutant 9% | Scavenger-Gladiator Dominant Class ---------------- Mutant | -10/Materials Scavenger-Mutant | -9/Materials Mutant | -9/Storage Resources | -11 -10 -9 -9 ----------- Run | Yrd Mat Mat Sto Matter Collected 1218 | 228 152 642 196 Remotely . | . . . . Salvage Created 2081 | . 268 1560 253 Parts 134 | . 25 94 15 Haulers Intercepted 7 | . 1 5 1 Recyclers Shooed 1 | . . 1 . Parts Field Recycled . | . . . . Retrieved Matter . | . . . . Parts Self-Destructed . | . . . . Prevented . | . . . . Kills | -11 -10 -9 -9 ------- Run | Yrd Mat Mat Sto Combat Hostiles Destroyed 47 | . 11 32 4 Melee 13 | . . 10 3 Guns 12 | . 3 8 1 Cannons 5 | . . 5 . AOE 17 | . 8 9 . Classes Destroyed 10 | . 5 4 1 Worker 3 | . . 3 . Builder 5 | . 1 4 . Hauler 7 | . 1 5 1 Recycler 1 | . . 1 . Operator 1 | . . . 1 Watcher 3 | . 1 2 . Swarmer 12 | . 6 6 . Grunt 22 | . 5 15 2 Duelist 2 | . . 2 . Sentry 11 | . . 9 2 Best Kill Streak 5 | . 5 5 2 Combat Bots Only 4 | . 3 4 2 Max Kills in Single Turn 3 | . 2 3 1 Gunslinging . | . . . . Exploded 3 | . 2 3 . Melee 1 | . . 1 1 Uniques/NPCs Destroyed . | . . . . Combat | -11 -10 -9 -9 -------- Run | Yrd Mat Mat Sto Hostile Shots Fired 225 | . 26 177 22 Missed 56 | . 6 45 5 Damage Taken 2881 | . 263 2190 428 Core 420 | . 11 327 82 Absorbed by Shields 124 | . . 124 . Regen/Repaired (Parts) 56 | . . 56 . Core Remaining (%) 97 | 100 95 . . Volleys Fired 84 | 1 13 60 10 Largest 2 | 2 2 2 1 Hottest 110 | 90 90 110 55 Shots Fired 138 | 2 26 99 11 Gun 86 | 2 19 55 10 Cannon 26 | . . 25 1 Launcher 26 | . 7 19 . Special . | . . . . Kinetic 39 | . . 29 10 Thermal 56 | 2 7 46 1 Explosive 23 | . 7 16 . Electromagnetic 20 | . 12 8 . Robot Hit Streak 10 | 2 6 10 8 Robot Miss Streak 6 | . 2 6 . Penetration Max . | . . . . Secondary Targets 2 | . . 2 . Max Gunslinging Chain 1 | . . 1 . Shots Hit Robots 124 | 2 11 92 19 Core Hits 84 | . 17 60 7 Critical Kills . | . . . . Critical Parts Destroyed . | . . . . Critical Strikes 9 | . . 5 4 Burn 1 | . . 1 . Blast 1 | . . 1 . Sever 7 | . . 3 4 Melee Attacks 66 | . . 46 20 Impact . | . . . . Slashing 66 | . . 46 20 Piercing . | . . . . Sneak Attacks 11 | . . 8 3 Combat Hostiles . | . . . . Follow-up Attacks 3 | . . 3 . Damage Inflicted 4997 | 24 638 3677 658 Guns 902 | 24 151 636 91 Cannons 311 | . . 311 . Explosions 1782 | . 487 1295 . Melee 2002 | . . 1435 567 Ramming . | . . . . Kinetic 424 | . . 333 91 Thermal 756 | 24 184 548 . Explosive 1583 | . 329 1254 . Electromagnetic 232 | . 125 107 . Impact . | . . . . Slashing 2002 | . . 1435 567 Piercing . | . . . . Highest Corruption 6 | . . 6 6 Average Corruption 6 | . . 6 6 Corruption Purged . | . . . . Corruption Blocked . | . . . . Effects 62 | . . 53 9 Message Errors 18 | . . 14 4 Matter Fused 14 | . . 13 1 Heat Flow Errors 6 | . . 5 1 Energy Discharges 9 | . . 8 1 Parts Rejected 1 | . . 1 . Data Loss (minor) 9 | . . 9 . Data Loss (major) 2 | . . 1 1 Misfires 2 | . . 1 1 Weapon Failures 1 | . . 1 . Overload Shots . | . . . . Overflow Damage 271 | . . 239 32 Projectiles 12 | . . 12 . Explosions 132 | . . 132 . Melee 127 | . . 95 32 Knockbacks 4 | . . 4 . Impact . | . . . . Kinetic 3 | . . 3 . Secondary 1 | . . 1 . Self-Inflicted Damage 535 | . 71 373 91 Shots 13 | . 4 7 2 Rammed . | . . . . Targets Rammed . | . . . . Kicked . | . . . . Crushed . | . . . . Highest Temperature 573 | 30 231 573 268 Average Temperature 127 | 18 79 143 117 Received Heat Transfer 657 | . 84 438 135 Effects 6 | . . 6 . Shutdowns 1 | . . 1 . Energy Bleed 1 | . . 1 . Interference 4 | . . 4 . Siege Activations . | . . . . Robots Corrupted . | . . . . Combat Hostiles . | . . . . Parts Fried 2 | . 1 1 . Impact Corruptions . | . . . . Robots Melted . | . . . . Combat Hostiles . | . . . . Parts Melted 5 | . . 4 1 Heat Transferred 1434 | 62 224 1148 . Parts Sabotaged . | . . . . Parts Stolen . | . . . . Parts Stripped . | . . . . Power Chain Reactions 2 | . 2 . . Alert | -11 -10 -9 -9 ------- Run | Yrd Mat Mat Sto Peak Influence 782 | . 180 782 538 Initial 330 | . . 76 330 Average 220 | . 52 413 395 Maximum Alert Level 3 | . . 3 2 Low Security (%) 56 | 100 100 19 . Level 1 15 | . . 24 60 Level 2 23 | . . 47 39 Level 3 3 | . . 8 . Level 4 . | . . . . Level 5 . | . . . . High Security . | . . . . Max Security . | . . . . Squads Dispatched 8 | . 2 3 3 Investigation 4 | . 2 1 1 Extermination . | . . . . Reinforcement 3 | . . 1 2 Assault 1 | . . 1 . Garrison . | . . . . Intercept . | . . . . Searches Triggered . | . . . . Construction Impeded 1 | . . 1 . Haulers Reinforced . | . . . . Active Scanning Responses . | . . . . Cargo Convoy Interrupts . | . . . . Stealth | -11 -10 -9 -9 --------- Run | Yrd Mat Mat Sto Distress Signals 5 | . 1 4 . Communications Jammed . | . . . . Distress Signals . | . . . . Times Spotted 70 | . 12 48 10 Peak Tracking Total 4 | . 4 4 4 Tactical Retreats 2 | . . 2 . Traps | -11 -10 -9 -9 ------- Run | Yrd Mat Mat Sto Traps Triggered 3 | . 1 . 2 Indirectly . | . . . . Trap Hack Attempts . | . . . . Triggered . | . . . . Disarmed . | . . . . Reprogrammed . | . . . . Reused . | . . . . Traps Extracted . | . . . . Installed . | . . . . Triggered . | . . . . Machines | -11 -10 -9 -9 ---------- Run | Yrd Mat Mat Sto Machines Disabled 10 | . 1 6 3 Max in Single Turn 2 | . 1 2 1 Machines Repaired . | . . . . Machines Dismantled . | . . . . Machines Sabotaged . | . . . . Overloaded Fab Kills . | . . . . Hacking | -11 -10 -9 -9 --------- Run | Yrd Mat Mat Sto Machines Accessed 15 | . 3 9 3 Terminals 10 | . 2 6 2 Fabricators . | . . . . Repair Stations 2 | . . 1 1 Recycling Units 1 | . 1 . . Scanalyzers 2 | . . 2 . Garrison Access . | . . . . Total Hacks 49 | . 10 33 6 Successful 24 | . 4 17 3 Failed 25 | . 6 16 3 Catastrophic 5 | . . 5 . Database Lockouts . | . . . . Manual . | . . . . Terminals 28 | . 7 18 3 Fabricators . | . . . . Repair Stations 6 | . . 3 3 Recycling Units 3 | . 3 . . Scanalyzers 12 | . . 12 . Garrison Access . | . . . . Terminal Hacks 10 | . 2 6 2 Robot Analysis 1 | . . 1 . Open Door 1 | . . . 1 Branch Access Points 1 | . . 1 . Locate Traps 1 | . . 1 . Maintenance Status 1 | . 1 . . Security Status 1 | . 1 . . Registered Components 1 | . . 1 . Zone Layout 3 | . . 2 1 Fabricator Hacks . | . . . . Repair Station Hacks 3 | . . 2 1 Scan Component 2 | . . 1 1 Repair 1 | . . 1 . Recycling Unit Hacks 2 | . 2 . . Retrieve Components 2 | . 2 . . Scanalyzer 9 | . . 9 . Insert Component 4 | . . 4 . Analyze 5 | . . 5 . Garrison Access Hacks . | . . . . Unauthorized Hacks . | . . . . Terminals . | . . . . Fabricators . | . . . . Repair Stations . | . . . . Recycling Units . | . . . . Scanalyzers . | . . . . Garrison Access . | . . . . Data Cores Recovered . | . . . . Used . | . . . . Hacking Detections 12 | . 2 9 1 Full Trace Events 6 | . 1 4 1 Feedback Events . | . . . . Feedback Blocked . | . . . . Robot Schematics Acquired . | . . . . Robots Built . | . . . . Authchips . | . . . . Time . | . . . . Total Robot Build Rating . | . . . . Part Schematics Acquired 4 | . . 4 . Parts Built . | . . . . Authchips . | . . . . Time . | . . . . Total Part Build Rating . | . . . . Parts Repaired 1 | . . 1 . Time 32 | . . 32 . Parts Recycled . | . . . . Recycled Matter . | . . . . Retrieved Matter . | . . . . Retrieved Components 7 | . 7 . . Parts Scanalyzed 4 | . . 4 . Part Schematics Acquired 4 | . . 4 . Parts Damaged . | . . . . Bothacking | -11 -10 -9 -9 ------------ Run | Yrd Mat Mat Sto Used RIF Installer . | . . . . Robots Hacked . | . . . . Non-combat . | . . . . Combat . | . . . . Robot Hacks Applied . | . . . . Relay Couplers Released . | . . . . Fabnet Peak Effective % . | . . . . Robots Rewired . | . . . . Allies Hacked . | . . . . Hacks Repelled . | . . . . Allies | -11 -10 -9 -9 -------- Run | Yrd Mat Mat Sto Total Allies . | . . . . Largest Group . | . . . . Highest-Rated Group . | . . . . Highest-Rated Ally . | . . . . Total Orders . | . . . . Ally Attacks . | . . . . Total Damage . | . . . . Kills . | . . . . Allies Corrupted . | . . . . Allies Melted . | . . . . Intel | -11 -10 -9 -9 ------- Run | Yrd Mat Mat Sto Robot Analysis Total 1 | . . 1 . Derelict Logs Recovered . | . . . . Drone Launches . | . . . . Drone Recoveries . | . . . . Exploration | -11 -10 -9 -9 ------------- Run | Yrd Mat Mat Sto Turns Passed 4606 | 1548 669 1982 407 Spaces Moved 2001 | 405 275 1140 181 Core 14 | 14 . . . Treads . | . . . . Legs 1987 | 391 275 1140 181 Wheels . | . . . . Hover . | . . . . Flight . | . . . . Fastest Speed 50 | 50 120 120 120 Average Speed 130 | 117 188 122 123 Slowest Speed 260 | 120 190 190 260 Overloaded Moves . | . . . . Propulsion Burnouts . | . . . . Robots Hopped . | . . . . Cave-ins Triggered . | . . . . Exploration Rate (%) 52 | 47 45 78 39 Regions Visited 3 Branch Regions 1 Pre-discovered Areas . | . . . . Known Exits Taken 1 | . . 1 . Unknown Exits Taken 2 | 1 1 . . Scrap Searched . | . . . . Spaces Dug . | . . . . Terrain Destroyed 271 | . 49 198 24 Melee . | . . . . Projectile 8 | . . 8 . AOE 263 | . 49 190 24 Terrain Rammed . | . . . . Walls Destroyed . | . . . . Machines Disabled . | . . . . Actions | -11 -10 -9 -9 --------- Run | Yrd Mat Mat Sto Total 3748 | 1474 398 1558 318 Wait 1465 | 1057 93 223 92 Move 1998 | 404 274 1139 181 Hop . | . . . . Pick Up 56 | 6 12 33 5 Fast Attach 5 | 2 . 3 . Attach 31 | 4 2 20 5 Detach . | . . . . Swap 30 | . 3 21 6 Drop 19 | . 1 18 . Fire 84 | 1 13 60 10 Melee 60 | . . 41 19 Ram . | . . . . Kick . | . . . . Crush . | . . . . Escape Stasis . | . . . . Rewire . | . . . . Trap . | . . . . Miscellaneous . | . . . . Route ------- -11/Scrapyard -10/Materials -9/Materials (discovered 5 exits: [*Mat x3] / *Min / *Sto) -9/Storage History --------- Turn | Location | Event 12 | -11/Scrapyard | Discovered new exit (range 15) 1549 | -11/Scrapyard | Entered Materials 1550 | -10/Materials | Build established: Mutant 2044 | -10/Materials | Discovered new exit (range 11) 2218 | -10/Materials | Entered another Materials area 2218 | -9/Materials | Evolved 2 slots: Propulsion x2 2482 | -9/Materials | Identified exit to Mines 2482 | -9/Materials | Identified exit to Storage 2640 | -9/Materials | Discovered new exit (range 5) 2652 | -9/Materials | Lost 3 parts (1n2w) 3039 | -9/Materials | Build established: Scavenger-Mutant 3435 | -9/Materials | Discovered new exit (range 16) 3532 | -9/Materials | Build established: Scavenger-Gladiator 3779 | -9/Materials | Discovered new exit (range 10) 3818 | -9/Materials | First assault squad dispatched 3823 | -9/Materials | Repaired Imp. Ion Engine 4059 | -9/Materials | Core integrity fell below 50% 4101 | -9/Materials | Lost 7 parts (1p3n1u2w) 4156 | -9/Materials | Core integrity fell below 20% 4200 | -9/Materials | Entered Storage 4353 | -9/Storage | Build established: Mutant 4538 | -9/Storage | Lost 3 parts (3n) 4607 | -9/Storage | Destroyed by Y-45 Defender with Beam Rifle Last Messages --------------- 04514_ Y-45 Defender Lgt. Treads severed. 04515_ Critical hit (Burn: +37). 04517_ Y-45 Defender destroyed. 04522_ System corrupted: Matter fused (-9). 04530_ Sneak attack on M-13 Machinist. 04530_ Destroyed Lgt. Ion Engine. 04538_ LW:2SJ1BN5&B9L:37OJD8I1|2J 04547_ Acquired Imp. Heat Sink. 04558_ ALERT: Hostiles spotted, dispatching reinforcements to Terminal S003. 04560_ System corrupted: Energy discharge (-20). 04563_ Compression Vault explodes. 04567_ K-01 Serf collects debris. 04580_ Sneak attack on O-16 Technician. 04580_ O-16 Technician destroyed. 04583_ K-01 Serf collects debris. 04583_ Acquired 15 matter. 04586_ K-01 Serf cleans the Terminal. 04601_ N2OTIH#MBMLSPUBCY GIW2MLGB0VDX1TUQG8 Map ----- +----------------------------------------------------+ | | | | | ????????????????#?######????????? | | ?????????????### # ##???????? | | ????????????## ##??????? | | ??????????### #??????? | | ??????????# #??????? | | ??????????# #???????? | | ??????????# ##??????? | | ??????????+ #??????? | | ??????????# #???????? | | ??????????# [*= ##???????? | | ??????????#^ # #####????????? | | ??????????# ###%[ #???????????? | | ??????????# ![ #???????????? | | ??????????# T #???????????? | | ??????????# #### #???????????? | | ??????????# #??## ##???""""????? | | ??????????# #???#* #????# #????? | | ??????#####/##### !#????T #????? | | ??????# [ ##/ #????# #????? | | ??????# [ =## ##???# #????? | | ??????# ![ # ##### #????? | | ??????# + #????? | | ??????# # T #????? | | ??????# # ##+##@###???? | | ??????# ## ## Y #? | | ??????# ## ## #?? | | ??????# ## ##![ """ #?? | | ??????###+####### ##[[ """ #?? | | ????????# #?????# ## """ #?? | | ????????# #?????# ## #?? | | ?########+#?????# ## #?? | | ## """" #?????# ## #?? | | # """" #?????# ############?? | | ?# """" ####### ##???????????? | | ?# """" ## #???????????? | | ?# ^ #???????????? | | ?# +???????????? | | ?# " "" ## [[[ #???????????? | | ?# "R"" ## [^[ #???????????? | | ?# """" ## [[[ #???????????? | | ?########### [ #???????????? | | ?# | #???????????? | | ?# #???????????? | | ?# ############# ###???????????? | | ????????????????# #?????????????? | | ????????????????# ############??? | | ?# #??# ## #??? | | ?# #??# ## ########## #??? | +----------------------------------------------------+ Best States ------------- Heat Dissipation 38 Energy Generation 12 Energy Capacity 265 Matter Stores 300 Matter Capacity 300 Sight Range 16 Robot Scan Range 14 Terrain Scan Density 10 Armor Coverage 150 Evasion (%) 55 Item Schematics ----------------- Grenade Launcher | -9/Materials | Scanalyzed Signal Interpreter | -9/Materials | Scanalyzed Sensor Array | -9/Materials | Scanalyzed Actuator Array | -9/Materials | Scanalyzed Robot Schematics ------------------ None Fabricated ------------ Nothing Alien Tech Used ----------------- None Achievements -------------- None Challenges ------------ None Game ------ Seed FortressDataWheel Manual? 0 Play Time 00:33:29 Cumulative 9.0 hours Start 2024.04.20 @ 12:19:52 End 2024.04.20 @ 12:53:12 Sessions 1 Manual Loads 0 Difficulty Rogue Special Mode None Game No. 9 Rogue 9 Adventurer 0 Explorer 0 Win Type - Total 0 Types 0/0/0/0/0/0/0/0/0 Lore% 15 Gallery% 16 Achievement% 15 Wizard Run 0 Options --------- Layout 1 ASCII 0 Keyboard 0 Movement Mouse Keybinds 0 Fullscreen 1 Font 32/SmallcapsGlow Map View 50x35 Zoom Use 0% Tactical HUD 1 Map Filters NONE Filters NONE Steam 1 RUN: 96adfc94-d59b-4c6d-b71d-281f04011cc5